fUST/lending_fUST_20250628
["ID","MTS","AMOUNT","RATE_DAILY","PERIOD"]
[368320942,1751117448288,-286.391799,0.00020935,2]
[368320943,1751117448297,-613.77210429,0.00020961,2]
[368320944,1751117448307,-1500.0,0.00020978,2]
[368320945,1751117448316,-6000.0,0.00021026,2]
[368320946,1751117448326,-1500.0,0.00021087,2]
[368320947,1751117448335,-511.32697788,0.00021087,2]
[368320948,1751117448344,-13904.66620825,0.00021095,2]
[368320949,1751117448353,-5221.60751258,0.00021095,2]
[368320950,1751117448363,-316.602847,0.00021095,2]
[368320951,1751117448372,-316.602847,0.00021095,2]
[368320952,1751117448381,-301.231376,0.00021095,2]
[368320953,1751117448390,-301.231376,0.00021095,2]
[368320954,1751117448399,-172.4531322,0.00021095,2]
[368320955,1751117448408,-151.0,0.00021095,2]
[368320956,1751117448417,-3828.59,0.00021095,2]
[368320957,1751117448426,-1194.06,0.00021095,2]
[368320958,1751117448435,-1412.01,0.00021095,2]
[368320959,1751117448445,-460.0,0.00021095,2]
[368320960,1751117448454,-1872.7,0.00021095,2]
[368320961,1751117448463,-460.0,0.00021095,2]
[368320962,1751117448472,-460.0,0.00021095,2]
[368320963,1751117448481,-460.0,0.00021095,2]
[368320964,1751117448491,-460.0,0.00021095,2]
[368320965,1751117448501,-1527.23,0.00021095,2]
[368320966,1751117448510,-3583.76,0.00021095,2]
[368320967,1751117448519,-1503.18,0.00021095,2]
[368320968,1751117448528,-151.0,0.00021095,2]
[368320969,1751117448537,-153.729187,0.00021095,2]
[368320970,1751117448546,-671.41,0.00021095,2]
[368320971,1751117448557,-460.0,0.00021095,2]
[368320972,1751117448566,-152.097823,0.00021095,2]
[368320973,1751117448575,-460.0,0.00021095,2]
[368320974,1751117448584,-460.0,0.00021095,2]
[368320975,1751117448594,-642.4,0.00021095,2]
[368320976,1751117448603,-151.0,0.00021095,2]
[368320977,1751117448613,-151.0,0.00021095,2]
[368320978,1751117448622,-151.0,0.00021095,2]
[368320979,1751117448633,-460.0,0.00021095,2]
[368320980,1751117448644,-151.0,0.00021095,2]
[368320981,1751117448656,-672.575801,0.00021095,2]
[368320982,1751117448665,-672.575801,0.00021095,2]
[368320983,1751117448674,-151.0,0.00021095,2]
[368320984,1751117448683,-151.0,0.00021095,2]
[368320985,1751117448693,-460.0,0.00021095,2]
[368320986,1751117448702,-460.0,0.00021095,2]
[368320987,1751117448712,-1923.24,0.00021095,2]
[368320988,1751117448722,-460.0,0.00021095,2]
[368320989,1751117448732,-966.72,0.00021095,2]
[368320990,1751117448742,-677.09,0.00021095,2]
[368320991,1751117448752,-533.62,0.00021095,2]
[368320992,1751117448761,-460.0,0.00021095,2]
[368320993,1751117448771,-460.0,0.00021095,2]
[368320994,1751117448781,-460.0,0.00021095,2]
[368320995,1751117448790,-597.03,0.00021095,2]
[368320996,1751117448800,-460.0,0.00021095,2]
[368320997,1751117448810,-2476.82,0.00021095,2]
[368320998,1751117448819,-460.0,0.00021095,2]
[368320999,1751117448829,-2392.2,0.00021095,2]
[368321000,1751117448839,-868.82,0.00021095,2]
[368321001,1751117448848,-3068.15,0.00021095,2]
[368321002,1751117448858,-477.6,0.00021095,2]
[368321003,1751117448867,-511.39,0.00021095,2]
[368321004,1751117448876,-460.0,0.00021095,2]
[368321005,1751117448885,-989.84,0.00021095,2]
[368321006,1751117448895,-1580.86,0.00021095,2]
[368321007,1751117448905,-460.0,0.00021095,2]
[368321008,1751117448914,-502.36,0.00021095,2]
[368321009,1751117448924,-460.0,0.00021095,2]
[368321010,1751117448934,-1439.04,0.00021095,2]
[368321011,1751117448943,-535.49,0.00021095,2]
[368321012,1751117448952,-460.0,0.00021095,2]
[368321013,1751117448962,-460.0,0.00021095,2]
[368321014,1751117448971,-678.45,0.00021095,2]
[368321015,1751117448980,-1512.09,0.00021095,2]
[368321016,1751117448990,-460.0,0.00021095,2]
[368321017,1751117448999,-641.87,0.00021095,2]
[368321018,1751117449009,-588.6,0.00021095,2]
[368321019,1751117449018,-843.49,0.00021095,2]
[368321020,1751117449028,-588.74,0.00021095,2]
[368321021,1751117449037,-460.0,0.00021095,2]
[368321022,1751117449046,-600.71,0.00021095,2]
[368321023,1751117449059,-589.89,0.00021095,2]
[368321024,1751117449068,-460.0,0.00021095,2]
[368321025,1751117449078,-1706.49,0.00021095,2]
[368321026,1751117449088,-460.0,0.00021095,2]
[368321027,1751117449098,-2092.7,0.00021095,2]
[368321028,1751117449107,-619.58,0.00021095,2]
[368321029,1751117449116,-492.27,0.00021095,2]
[368321030,1751117449125,-935.99,0.00021095,2]
[368321031,1751117449134,-555.0,0.00021095,2]
[368321032,1751117449265,-259.0,0.00021124,2]
[368321033,1751117449276,-5180.64247678,0.00021141,4]
[368321034,1751117449286,-887.2716203,0.00021331,2]
[368321035,1751117449295,-5180.64247678,0.00021348,5]
[368321036,1751117449306,-151.0,0.0002135,2]
[368321037,1751117449318,-5000.0,0.0002135,2]
[368321038,1751117449328,-25000.0,0.0002135,2]
[368321039,1751117449337,-3828.59,0.00021369,2]
[368321040,1751117449346,-1194.06,0.00021369,2]
[368321041,1751117449356,-1412.01,0.00021369,2]
[368321042,1751117449365,-460.0,0.00021369,2]
[368321043,1751117449375,-1872.7,0.00021369,2]
[368321044,1751117449384,-460.0,0.00021369,2]
[368321045,1751117449393,-460.0,0.00021369,2]
[368321046,1751117449403,-151.0,0.00021369,2]
[368321047,1751117449412,-460.0,0.00021369,2]
[368321048,1751117449422,-460.0,0.00021369,2]
[368321049,1751117449431,-1527.23,0.00021369,2]
[368321050,1751117449441,-225.494757,0.00021369,2]
[368321051,1751117449450,-3583.76,0.00021369,2]
[368321052,1751117449460,-1503.18,0.00021369,2]
[368321053,1751117449472,-671.41,0.00021369,2]
[368321054,1751117449481,-460.0,0.00021369,2]
[368321055,1751117449491,-460.0,0.00021369,2]
[368321056,1751117449500,-642.4,0.00021369,2]
[368321057,1751117449510,-460.0,0.00021369,2]
[368321058,1751117449519,-151.0,0.00021369,2]
[368321059,1751117449529,-151.0,0.00021369,2]
[368321060,1751117449538,-460.0,0.00021369,2]
[368321061,1751117449548,-438.28632599,0.00021369,2]
[368321062,1751117449558,-1923.24,0.00021369,2]
[368321063,1751117449567,-460.0,0.00021369,2]
[368321064,1751117449577,-966.72,0.00021369,2]
[368321065,1751117449586,-677.09,0.00021369,2]
[368321066,1751117449596,-533.62,0.00021369,2]
[368321067,1751117449606,-460.0,0.00021369,2]
[368321068,1751117449615,-460.0,0.00021369,2]
[368321069,1751117449625,-460.0,0.00021369,2]
[368321070,1751117449634,-597.03,0.00021369,2]
[368321071,1751117449646,-460.0,0.00021369,2]
[368321072,1751117449656,-2476.82,0.00021369,2]
[368321073,1751117449665,-460.0,0.00021369,2]
[368321074,1751117449675,-2392.2,0.00021369,2]
[368321075,1751117449684,-868.82,0.00021369,2]
[368321076,1751117449693,-3068.15,0.00021369,2]
[368321077,1751117449703,-477.6,0.00021369,2]
[368321078,1751117449712,-511.39,0.00021369,2]
[368321079,1751117449721,-460.0,0.00021369,2]
[368321080,1751117449730,-989.84,0.00021369,2]
[368321081,1751117449740,-1580.86,0.00021369,2]
[368321082,1751117449749,-460.0,0.00021369,2]
[368321083,1751117449759,-502.36,0.00021369,2]
[368321084,1751117449768,-215.41,0.00021369,2]
[368321085,1751117449778,-1439.04,0.00021369,2]
[368321086,1751117449788,-535.49,0.00021369,2]
[368321087,1751117449797,-460.0,0.00021369,2]
[368321088,1751117449807,-460.0,0.00021369,2]
[368321089,1751117449817,-678.45,0.00021369,2]
[368321090,1751117449826,-1512.09,0.00021369,2]
[368321091,1751117449835,-460.0,0.00021369,2]
[368321092,1751117449845,-641.87,0.00021369,2]
[368321093,1751117449855,-588.6,0.00021369,2]
[368321094,1751117449864,-843.49,0.00021369,2]
[368321095,1751117449874,-588.74,0.00021369,2]
[368321096,1751117449883,-460.0,0.00021369,2]
[368321097,1751117449892,-600.71,0.00021369,2]
[368321098,1751117449901,-462.36234047,0.00021369,2]
[368321099,1751117449911,-1706.49,0.00021369,2]
[368321100,1751117449921,-460.0,0.00021369,2]
[368321101,1751117449930,-2092.7,0.00021369,2]
[368321102,1751117449940,-619.58,0.00021369,2]
[368321103,1751117449950,-492.27,0.00021369,2]
[368321104,1751117449959,-286.391799,0.00021369,2]
[368321105,1751117449968,-935.99,0.00021369,2]
[368321106,1751117449978,-555.0,0.00021369,2]
[368321107,1751117449987,-286.391799,0.00021369,2]
[368321108,1751117449997,-395.930989,0.00021403,4]
[368321109,1751117450006,-1004.79287362,0.00021526,2]
[368321110,1751117450016,-5180.64247678,0.00021555,5]
[368321111,1751117450025,-10191.85008824,0.00021566,2]
[368321112,1751117450038,-254.45860606,0.00021566,2]
[368321113,1751117450051,-336.92244762,0.00021566,2]
[368321114,1751117450233,-460.0,0.00019178,2]
[368321115,1751117450243,-460.0,0.00019178,2]
[368321116,1751117450252,-460.0,0.00019452,2]
[368321117,1751117450262,-200.0,0.00020254,2]
[368321118,1751117450271,-200.0,0.00020254,2]
[368321119,1751117450280,-200.0,0.00020254,2]
[368321120,1751117450290,-200.0,0.00020254,2]
[368321121,1751117450299,-11028.37860808,0.00021566,2]
[368321122,1751117450308,-93375.4432198,0.00021567,2]
[368321123,1751117450318,-215.0738,0.00021623,2]
[368321124,1751117450328,-1500.0,0.00021635,2]
[368321125,1751117450338,-500.0,0.00021639,2]
[368321126,1751117450347,-500.0,0.00021639,2]
[368321127,1751117450356,-500.0,0.00021639,2]
[368321128,1751117450366,-500.0,0.00021639,2]
[368321129,1751117450375,-235.53665973,0.00021642,2]
[368321130,1751117450385,-3828.59,0.00021643,2]
[368321131,1751117450394,-1194.06,0.00021643,2]
[368321132,1751117450403,-1412.01,0.00021643,2]
[368321133,1751117450412,-460.0,0.00021643,2]
[368321134,1751117450422,-1872.7,0.00021643,2]
[368321135,1751117450431,-460.0,0.00021643,2]
[368321136,1751117450440,-460.0,0.00021643,2]
[368321137,1751117450449,-460.0,0.00021643,2]
[368321138,1751117450459,-460.0,0.00021643,2]
[368321139,1751117450468,-1527.23,0.00021643,2]
[368321140,1751117450477,-3583.76,0.00021643,2]
[368321141,1751117450486,-1503.18,0.00021643,2]
[368321142,1751117450496,-151.0,0.00021643,2]
[368321143,1751117450505,-671.41,0.00021643,2]
[368321144,1751117450514,-575.18015984,0.00021643,2]
[368321145,1751117450524,-460.0,0.00021643,2]
[368321146,1751117450533,-642.4,0.00021643,2]
[368321147,1751117450542,-151.0,0.00021643,2]
[368321148,1751117450551,-352.21001853,0.00021643,2]
[368321149,1751117450562,-151.0,0.00021643,2]
[368321150,1751117450571,-151.0,0.00021643,2]
[368321151,1751117450580,-460.0,0.00021643,2]
[368321152,1751117450590,-151.0,0.00021643,2]
[368321153,1751117450601,-672.575801,0.00021643,2]
[368321154,1751117450612,-672.575801,0.00021643,2]
[368321155,1751117450622,-460.0,0.00021643,2]
[368321156,1751117450631,-1923.24,0.00021643,2]
[368321157,1751117450641,-460.0,0.00021643,2]
[368321158,1751117450653,-966.72,0.00021643,2]
[368321159,1751117450662,-677.09,0.00021643,2]
[368321160,1751117450672,-533.62,0.00021643,2]
[368321161,1751117450681,-460.0,0.00021643,2]
[368321162,1751117450691,-460.0,0.00021643,2]
[368321163,1751117450700,-460.0,0.00021643,2]
[368321164,1751117450709,-597.03,0.00021643,2]
[368321165,1751117450719,-460.0,0.00021643,2]
[368321166,1751117450730,-2476.82,0.00021643,2]
[368321167,1751117450740,-460.0,0.00021643,2]
[368321168,1751117450749,-2392.2,0.00021643,2]
[368321169,1751117450759,-868.82,0.00021643,2]
[368321170,1751117450768,-3068.15,0.00021643,2]
[368321171,1751117450776,-477.6,0.00021643,2]
[368321172,1751117450786,-511.39,0.00021643,2]
[368321173,1751117450797,-460.0,0.00021643,2]
[368321174,1751117450807,-989.84,0.00021643,2]
[368321175,1751117450816,-1580.86,0.00021643,2]
[368321176,1751117450826,-460.0,0.00021643,2]
[368321177,1751117450835,-502.36,0.00021643,2]
[368321178,1751117450844,-1439.04,0.00021643,2]
[368321179,1751117450854,-535.49,0.00021643,2]
[368321180,1751117450863,-460.0,0.00021643,2]
[368321181,1751117450873,-460.0,0.00021643,2]
[368321182,1751117450882,-678.45,0.00021643,2]
[368321183,1751117450893,-1512.09,0.00021643,2]
[368321184,1751117450902,-1407.43123406,0.00021643,2]
[368321185,1751117450911,-460.0,0.00021643,2]
[368321186,1751117450921,-641.87,0.00021643,2]
[368321187,1751117450930,-588.6,0.00021643,2]
[368321188,1751117450939,-843.49,0.00021643,2]
[368321189,1751117450949,-588.74,0.00021643,2]
[368321190,1751117450959,-460.0,0.00021643,2]
[368321191,1751117450968,-600.71,0.00021643,2]
[368321192,1751117450978,-1706.49,0.00021643,2]
[368321193,1751117450987,-460.0,0.00021643,2]
[368321194,1751117450996,-619.58,0.00021643,2]
[368321195,1751117451006,-492.27,0.00021643,2]
[368321196,1751117451016,-935.99,0.00021643,2]
[368321197,1751117451027,-555.0,0.00021643,2]
[368321198,1751117451036,-5000.0,0.00021644,2]
[368321199,1751117451046,-153.26205658,0.0002165,2]
[368321200,1751117451055,-198.17836981,0.0002165,2]
[368321201,1751117451064,-521.62916457,0.00021666,2]
[368321202,1751117451073,-500.0,0.00021666,2]
[368321203,1751117451083,-500.0,0.00021666,2]
[368321204,1751117451093,-500.0,0.00021666,2]
[368321205,1751117451103,-500.0,0.00021666,2]
[368321206,1751117451113,-402.880666,0.00021666,2]
[368321207,1751117451122,-500.0,0.00021666,2]
[368321208,1751117451131,-649.98537428,0.00021666,2]
[368321209,1751117451141,-342.11807829,0.00021666,2]
[368321210,1751117451150,-219.90136417,0.00021666,2]
[368321211,1751117451160,-500.0,0.00021666,2]
[368321212,1751117451169,-600.0,0.00021666,2]
[368321213,1751117451178,-400.95617004,0.00021666,2]
[368321214,1751117451187,-600.56496766,0.00021666,2]
[368321215,1751117451196,-500.0,0.00021666,2]
[368321216,1751117451205,-500.0,0.00021666,2]
[368321217,1751117451215,-571.59680365,0.00021666,2]
[368321218,1751117451224,-200.0,0.0002168,2]
[368321219,1751117451233,-151.0,0.00021703,2]
[368321220,1751117451243,-151.0,0.00021703,2]
[368321221,1751117451253,-500.0,0.00021703,2]
[368321222,1751117451262,-151.0,0.00021762,2]
[368321223,1751117451271,-151.0,0.00021762,2]
[368321224,1751117451281,-5180.64247678,0.00021762,5]
[368321225,1751117451291,-439.0,0.00021777,2]
[368321226,1751117451300,-11175.271891,0.00021779,2]
[368321227,1751117451311,-151.0,0.00021779,2]
[368321228,1751117451321,-2161.0,0.00021789,2]
[368321229,1751117451330,-654.0,0.00021789,2]
[368321230,1751117451339,-966.0,0.00021789,2]
[368321231,1751117451348,-3080.62,0.000218,2]
[368321232,1751117451358,-151.0,0.000218,4]
[368321233,1751117451367,-243.594905,0.000218,2]
[368321234,1751117451377,-243.594905,0.000218,2]
[368321235,1751117451386,-155.18730198,0.00021808,2]
[368321236,1751117451395,-316.602847,0.0002181,2]
[368321237,1751117451404,-316.602847,0.0002181,2]
[368321238,1751117451413,-301.231376,0.0002181,2]
[368321239,1751117451423,-301.231376,0.0002181,2]
[368321240,1751117451432,-151.0,0.0002181,2]
[368321241,1751117451441,-500.0,0.00021828,2]
[368321242,1751117451450,-500.0,0.00021828,2]
[368321243,1751117451460,-286.391799,0.0002183,2]
[368321244,1751117451470,-286.391799,0.0002183,2]
[368321245,1751117451479,-45000.0,0.00021839,2]
[368321246,1751117451489,-151.0,0.00021839,2]
[368321247,1751117451499,-151.0,0.00021839,2]
[368321248,1751117451508,-151.0,0.00021839,2]
[368321249,1751117451517,-151.0,0.00021839,2]
[368321250,1751117451526,-151.0,0.00021839,2]
[368321251,1751117451536,-672.575801,0.00021839,2]
[368321252,1751117451545,-672.575801,0.00021839,2]
[368321253,1751117451556,-151.0,0.00021839,2]
[368321254,1751117451566,-151.0,0.00021839,2]
[368321255,1751117451576,-1414.6517054,0.0002184,2]
[368321256,1751117451586,-295.60569756,0.0002184,2]
[368321257,1751117451596,-3000.0,0.0002185,2]
[368321258,1751117451606,-151.0,0.0002185,2]
[368321259,1751117451616,-151.0,0.0002185,2]
[368321260,1751117451625,-3000.0,0.0002186,2]
[368321261,1751117451635,-3000.0,0.0002187,2]
[368321262,1751117451647,-895.32366721,0.0002188,5]
[368321263,1751117451658,-3000.0,0.0002188,2]
[368321264,1751117451667,-620.40447539,0.00021889,2]
[368321265,1751117451676,-3000.0,0.0002189,2]
[368321266,1751117451685,-151.0,0.0002189,2]
[368321267,1751117451695,-192.0,0.00021897,2]
[368321268,1751117451704,-5000.0,0.00021898,2]
[368321269,1751117451713,-5534.34333863,0.00021899,2]
[368321270,1751117451827,-887.2716203,0.00021899,2]
[368321271,1751117451837,-163.0,0.000219,6]
[368321272,1751117451847,-163.0,0.000219,5]
[368321273,1751117451858,-3000.0,0.000219,2]
[368321274,1751117451868,-151.0,0.00021902,2]
[368321275,1751117451877,-3000.0,0.0002191,2]
[368321276,1751117451888,-431.279927,0.00021917,2]
[368321277,1751117451898,-431.279927,0.00021917,2]
[368321278,1751117451908,-7595.77876626,0.00021917,2]
[368321279,1751117451917,-151.0,0.00021917,2]
[368321280,1751117451927,-170.268369,0.00021917,2]
[368321281,1751117451936,-170.268369,0.00021917,2]
[368321282,1751117451945,-151.0,0.00021917,2]
[368321283,1751117451955,-151.0,0.00021917,2]
[368321284,1751117451964,-3828.59,0.00021917,2]
[368321285,1751117451974,-1194.06,0.00021917,2]
[368321286,1751117451983,-151.0,0.00021917,2]
[368321287,1751117451992,-1412.01,0.00021917,2]
[368321288,1751117452002,-460.0,0.00021917,2]
[368321289,1751117452011,-1872.7,0.00021917,2]
[368321290,1751117452020,-460.0,0.00021917,2]
[368321291,1751117452030,-460.0,0.00021917,2]
[368321292,1751117452039,-151.0,0.00021917,2]
[368321293,1751117452049,-460.0,0.00021917,2]
[368321294,1751117452059,-460.0,0.00021917,2]
[368321295,1751117452069,-1527.23,0.00021917,2]
[368321296,1751117452079,-3583.76,0.00021917,2]
[368321297,1751117452089,-151.0,0.00021917,2]
[368321298,1751117452099,-300.306159,0.00021917,2]
[368321299,1751117452108,-1503.18,0.00021917,2]
[368321300,1751117452117,-671.41,0.00021917,2]
[368321301,1751117452127,-460.0,0.00021917,2]
[368321302,1751117452137,-642.4,0.00021917,2]
[368321303,1751117452146,-460.0,0.00021917,2]
[368321304,1751117452155,-460.0,0.00021917,2]
[368321305,1751117452165,-1923.24,0.00021917,2]
[368321306,1751117452174,-460.0,0.00021917,2]
[368321307,1751117452184,-966.72,0.00021917,2]
[368321308,1751117452193,-677.09,0.00021917,2]
[368321309,1751117452204,-533.62,0.00021917,2]
[368321310,1751117452214,-460.0,0.00021917,2]
[368321311,1751117452223,-460.0,0.00021917,2]
[368321312,1751117452232,-460.0,0.00021917,2]
[368321313,1751117452242,-597.03,0.00021917,2]
[368321314,1751117452250,-460.0,0.00021917,2]
[368321315,1751117452260,-2476.82,0.00021917,2]
[368321316,1751117452269,-460.0,0.00021917,2]
[368321317,1751117452279,-2392.2,0.00021917,2]
[368321318,1751117452288,-868.82,0.00021917,2]
[368321319,1751117452297,-3068.15,0.00021917,2]
[368321320,1751117452306,-477.6,0.00021917,2]
[368321321,1751117452316,-511.39,0.00021917,2]
[368321322,1751117452325,-460.0,0.00021917,2]
[368321323,1751117452334,-989.84,0.00021917,2]
[368321324,1751117452343,-1580.86,0.00021917,2]
[368321325,1751117452352,-460.0,0.00021917,2]
[368321326,1751117452361,-502.36,0.00021917,2]
[368321327,1751117452371,-1439.04,0.00021917,2]
[368321328,1751117452380,-535.49,0.00021917,2]
[368321329,1751117452389,-460.0,0.00021917,2]
[368321330,1751117452398,-460.0,0.00021917,2]
[368321331,1751117452408,-678.45,0.00021917,2]
[368321332,1751117452417,-1512.09,0.00021917,2]
[368321333,1751117452425,-460.0,0.00021917,2]
[368321334,1751117452435,-641.87,0.00021917,2]
[368321335,1751117452444,-588.6,0.00021917,2]
[368321336,1751117452454,-843.49,0.00021917,2]
[368321337,1751117452463,-588.74,0.00021917,2]
[368321338,1751117452473,-460.0,0.00021917,2]
[368321339,1751117452482,-600.71,0.00021917,2]
[368321340,1751117452491,-1706.49,0.00021917,2]
[368321341,1751117452501,-460.0,0.00021917,2]
[368321342,1751117452510,-619.58,0.00021917,2]
[368321343,1751117452520,-492.27,0.00021917,2]
[368321344,1751117452529,-188.460285,0.00021917,2]
[368321345,1751117452538,-935.99,0.00021917,2]
[368321346,1751117452548,-555.0,0.00021917,2]
[368321347,1751117452558,-153.0,0.00021918,2]
[368321348,1751117452568,-153.0,0.00021918,2]
[368321349,1751117452577,-153.0,0.00021918,2]
[368321350,1751117452586,-153.0,0.00021918,2]
[368321351,1751117452595,-153.0,0.00021918,2]
[368321352,1751117452605,-153.0,0.00021918,2]
[368321353,1751117452614,-153.0,0.00021918,2]
[368321354,1751117452623,-153.0,0.00021918,2]
[368321355,1751117452633,-153.0,0.00021918,2]
[368321356,1751117452642,-153.0,0.00021918,2]
[368321357,1751117452656,-153.0,0.00021918,2]
[368321358,1751117452665,-153.0,0.00021918,2]
[368321359,1751117452674,-153.0,0.00021918,2]
[368321360,1751117452683,-153.0,0.00021918,2]
[368321361,1751117452692,-153.0,0.00021918,2]
[368321362,1751117452702,-153.0,0.00021918,2]
[368321363,1751117452711,-153.0,0.00021918,2]
[368321364,1751117452720,-153.0,0.00021918,2]
[368321365,1751117452731,-153.0,0.00021918,2]
[368321366,1751117452740,-153.0,0.00021918,2]
[368321367,1751117452749,-153.0,0.00021918,2]
[368321368,1751117452759,-153.0,0.00021918,2]
[368321369,1751117452769,-153.0,0.00021918,2]
[368321370,1751117452778,-153.0,0.00021918,2]
[368321371,1751117452787,-153.0,0.00021918,2]
[368321372,1751117452796,-153.0,0.00021918,2]
[368321373,1751117452806,-153.0,0.00021918,2]
[368321374,1751117452815,-153.0,0.00021918,2]
[368321375,1751117452824,-153.0,0.00021918,2]
[368321376,1751117452833,-153.0,0.00021918,2]
[368321377,1751117452842,-153.0,0.00021918,2]
[368321378,1751117452851,-153.0,0.00021918,2]
[368321379,1751117452860,-153.0,0.00021918,2]
[368321380,1751117452869,-153.0,0.00021918,2]
[368321381,1751117452879,-153.0,0.00021918,2]
[368321382,1751117452888,-153.0,0.00021918,2]
[368321383,1751117452897,-153.0,0.00021918,2]
[368321384,1751117452906,-153.0,0.00021918,2]
[368321385,1751117452916,-153.0,0.00021918,2]
[368321386,1751117452925,-153.0,0.00021918,2]
[368321387,1751117452934,-153.0,0.00021918,2]
[368321388,1751117452944,-153.0,0.00021918,2]
[368321389,1751117452952,-153.0,0.00021918,2]
[368321390,1751117452961,-153.0,0.00021918,2]
[368321391,1751117452970,-153.0,0.00021918,2]
[368321392,1751117452979,-153.0,0.00021918,2]
[368321393,1751117452989,-153.0,0.00021918,2]
[368321394,1751117452998,-153.0,0.00021918,2]
[368321395,1751117453008,-153.0,0.00021918,2]
[368321396,1751117453017,-153.0,0.00021918,2]
[368321397,1751117453027,-153.0,0.00021918,2]
[368321398,1751117453036,-153.0,0.00021918,2]
[368321399,1751117453046,-153.0,0.00021918,2]
[368321400,1751117453062,-153.0,0.00021918,2]
[368321401,1751117453090,-151.0,0.00021918,2]
[368321402,1751117453117,-151.0,0.00021918,2]
[368321403,1751117453140,-151.0,0.00021918,2]
[368321404,1751117453162,-237.13056107,0.00021918,2]
[368321405,1751117453186,-151.0,0.00021918,2]
[368321406,1751117453219,-151.484863,0.00021918,2]
[368321407,1751117453253,-286.391799,0.00021918,7]
[368321408,1751117453285,-286.391799,0.00021918,7]
[368321409,1751117453317,-3000.0,0.0002192,2]
[368321410,1751117453349,-259.0,0.00021926,2]
[368321411,1751117453358,-5382.41696,0.0002193,2]
[368321412,1751117453367,-151.0,0.00021939,5]
[368321413,1751117453377,-151.0,0.00021945,7]
[368321414,1751117453386,-151.0,0.00021945,7]
[368321415,1751117453395,-151.0,0.00021945,7]
[368321416,1751117453405,-151.525355,0.00021945,7]
[368321417,1751117453414,-153.0,0.00021945,2]
[368321418,1751117453423,-153.0,0.00021945,2]
[368321419,1751117453432,-153.0,0.00021945,2]
[368321420,1751117453441,-153.0,0.00021945,2]
[368321421,1751117453450,-439.0,0.0002195,2]
[368321422,1751117453461,-5180.64247678,0.00021969,6]
[368321423,1751117453470,-1000.0,0.00021972,2]
[368321424,1751117453479,-1000.0,0.00021972,2]
[368321425,1751117453489,-1000.0,0.00021972,2]
[368321426,1751117453498,-645.68,0.00021972,2]
[368321427,1751117453507,-500.0,0.00021973,2]
[368321428,1751117453517,-500.0,0.00021973,2]
[368321429,1751117453526,-500.0,0.00021973,2]
[368321430,1751117453535,-500.0,0.00021973,2]
[368321431,1751117453544,-500.0,0.00021973,2]
[368321432,1751117453554,-500.0,0.00021973,2]
[368321433,1751117453563,-500.0,0.00021973,2]
[368321434,1751117453572,-500.0,0.00021973,2]
[368321435,1751117453581,-500.0,0.00021973,2]
[368321436,1751117453590,-500.0,0.00021973,2]
[368321437,1751117453599,-500.0,0.00021973,2]
[368321438,1751117453608,-500.79973189,0.00021973,2]
[368321439,1751117453617,-500.0,0.00021973,2]
[368321440,1751117453627,-500.33689956,0.00021973,2]
[368321441,1751117453637,-500.18674294,0.00021973,2]